bitfinex-derivatives/quotes_SOLF0:USTF0_20241026
["timestamp","ask_amount","ask_price","bid_price","bid_amount"]
[1729917029515,8.33193156,166.01,165.95,9.63793156]
[1729917029712,8.33193156,166.01,165.96,3.25933203]
[1729917029916,8.33193156,166.01,165.97,3.25933203]
[1729917030113,8.33193156,166.01,165.98,3.25933203]
[1729917030309,8.33193156,166.01,165.95,9.63793156]
[1729917030517,8.33193156,166.01,165.96,3.2598024]
[1729917030718,8.33193156,166.01,165.97,3.2598024]
[1729917031014,8.33193156,166.01,165.98,3.2598024]
[1729917031216,11.34783156,166.01,165.95,12.65483156]
[1729917031418,11.34783156,166.01,165.96,3.25872295]
[1729917031621,11.34783156,166.01,165.97,3.25872295]
[1729917031822,4.46,166.0,165.98,3.25872295]
[1729917032021,8.33193156,165.99,165.89,2.74386922]
[1729917032219,8.33193156,165.95,165.9,9.84070078]
[1729917032427,1.2965,166.02,165.91,9.84070078]
[1729917032428,12.79193156,165.96,165.91,9.84070078]
[1729917032716,8.33193156,165.96,165.92,1.50876922]
[1729917032916,4.46,165.97,165.92,8.33193156]
[1729917033111,11.34843156,165.98,165.94,8.33193156]
[1729917033112,4.46,165.98,165.94,8.33193156]
[1729917034018,4.46,165.98,165.95,8.33193156]
[1729917035024,8.33193156,165.99,165.95,8.33193156]
[1729917035224,4.46,165.99,165.95,11.34883156]
[1729917037921,4.46,165.99,165.96,8.33193156]
[1729917040624,11.34783156,166.01,165.96,8.33193156]
[1729917040825,15.80783156,166.01,165.96,8.33193156]
[1729917043832,4.46,166.01,165.96,8.33193156]
[1729917044132,12.79193156,166.01,165.96,8.33193156]
[1729917045232,15.80793156,166.01,165.96,8.33193156]
[1729917045731,8.33193156,165.98,165.93,3.0173]
[1729917045932,4.46,165.97,165.93,8.33193156]
[1729917046321,12.79193156,165.97,165.93,8.33193156]
[1729917046528,3.0168,165.96,165.91,11.34963156]
[1729917046727,12.79193156,165.97,165.92,3.22697144]
[1729917046930,12.79193156,165.97,165.93,3.22697144]
[1729917047130,12.79193156,165.97,165.91,8.33193156]
[1729917047335,12.79193156,165.97,165.92,3.22667273]
[1729917047523,12.79193156,165.97,165.93,8.33193156]
[1729917047724,4.46,165.97,165.94,8.33193156]
[1729917047923,4.46,165.98,165.94,8.33193156]
[1729917048434,4.46,165.98,165.96,8.33193156]
[1729917048825,4.46,165.98,165.96,11.34873156]
[1729917049029,8.33193156,166.0,165.96,11.34873156]
[1729917049230,8.33193156,166.0,165.91,4.46]
[1729917049231,4.46,166.0,165.97,8.33193156]
[1729917049835,12.79193156,166.0,165.96,11.34873156]
[1729917050637,12.79193156,166.0,165.96,8.33193156]
[1729917051335,4.46,166.0,165.96,11.34873156]
[1729917051540,12.79193156,166.0,165.96,11.34873156]
[1729917053248,4.46,166.0,165.97,11.34843156]
[1729917058948,12.79193156,166.0,165.97,3.0165]
[1729917060551,15.80813156,166.0,165.95,11.34883156]
[1729917062257,11.34823156,165.99,165.95,3.0169]
[1729917062459,8.33193156,165.99,165.93,11.34923156]
[1729917063056,8.33193156,165.98,165.93,8.33193156]
[1729917064361,8.33193156,165.98,165.92,3.0174]
[1729917064565,8.33193156,165.98,165.93,8.33193156]
[1729917064952,11.34843156,165.98,165.93,8.33193156]
[1729917065762,11.34843156,165.98,165.92,11.34933156]
[1729917066560,3.0167,165.97,165.92,11.34933156]
[1729917066861,4.46,165.96,165.92,8.33193156]
[1729917067065,12.79193156,165.96,165.92,8.33193156]
[1729917068266,12.79193156,165.96,165.92,11.34933156]
[1729917069463,8.33193156,165.94,165.89,1.2351]
[1729917069661,8.33193156,165.93,165.87,8.33193156]
[1729917069966,4.46,165.92,165.88,8.33193156]
[1729917070760,4.46,165.92,165.9,3.0179]
[1729917070962,8.33193156,165.96,165.91,8.33193156]
[1729917071167,8.33193156,165.97,165.91,8.33193156]
[1729917071369,4.46,165.95,165.92,3.0174]
[1729917073069,125.87204981,165.98,165.93,8.33193156]
[1729917073276,130.33204981,165.98,165.94,8.33193156]
[1729917074473,4.46,165.98,165.96,8.33193156]
[1729917075267,4.46,165.98,165.96,11.34863156]
[1729917077872,4.46,165.98,165.96,3.0167]
[1729917079572,4.46,165.98,165.94,8.33193156]
[1729917079772,4.46,165.98,165.96,3.0167]
[1729917081575,4.46,165.98,165.94,3.017]
[1729917081576,12.79193156,165.98,165.94,3.017]
[1729917100283,12.79193156,165.98,165.95,3.2372067]
[1729917100482,4.46,165.98,165.94,3.017]
[1729917100689,3.01246406,166.12,165.97,8.33193156]
[1729917100883,3.01246406,166.12,165.99,8.33193156]
[1729917100884,8.33193156,166.04,165.99,8.33193156]
[1729917101082,8.33193156,166.03,166.0,3.016]
[1729917101484,8.33193156,166.03,165.99,8.33193156]
[1729917102287,8.33193156,166.03,165.99,11.34813156]
[1729917103287,12.79193156,166.03,165.99,11.34813156]
[1729917105080,3.0154,166.04,165.99,3.0162]
[1729917105286,8.33193156,166.03,165.99,3.0162]
[1729917106489,8.33193156,166.02,165.96,8.33193156]
[1729917106684,8.33193156,165.99,165.94,2.6198]
[1729917106887,8.33193156,165.98,165.95,3.23317831]
[1729917107090,8.33193156,165.98,165.96,3.23317831]
[1729917107391,8.33193156,165.97,165.94,2.6198]
[1729917107592,11.34853156,165.97,165.92,3.0175]
[1729917107790,8.33193156,165.95,165.93,3.23477485]
[1729917108088,8.33193156,165.95,165.94,3.23477485]
[1729917109396,7.4768,165.97,165.94,3.23477485]
[1729917109594,8.33193156,165.96,165.92,8.33193156]
[1729917109795,8.33193156,165.96,165.93,3.2349432]
[1729917109993,8.33193156,165.96,165.94,3.2349432]
[1729917110194,8.33193156,165.96,165.92,8.33193156]
[1729917110394,8.33193156,165.96,165.93,3.23501346]
[1729917110596,8.33193156,165.96,165.94,3.23501346]
[1729917110795,8.33193156,165.96,165.92,11.34943156]
[1729917110995,8.33193156,165.96,165.93,3.23441352]
[1729917111200,8.33193156,165.96,165.94,3.23441352]
[1729917111494,8.33193156,165.96,165.92,3.0175]
[1729917111691,3.0172,165.94,165.88,3.0181]
[1729917111899,8.33193156,165.91,165.89,3.2360173]
[1729917112196,8.33193156,165.91,165.9,3.2360173]
[1729917112797,8.33193156,165.91,165.88,3.0181]
[1729917112996,8.33193156,165.91,165.89,3.23623262]
[1729917113198,8.33193156,165.91,165.88,3.0181]
[1729917113498,8.33193156,165.91,165.89,3.23529849]
[1729917113799,8.33193156,165.91,165.88,3.0181]
[1729917114000,8.33193156,165.91,165.89,3.23519862]
[1729917114200,8.33193156,165.91,165.88,3.0181]
[1729917114595,8.33193156,165.91,165.84,7.0492]
[1729917114797,8.33193156,165.91,165.85,11.56616149]
[1729917114998,8.33193156,165.91,165.86,3.23422993]
[1729917115199,8.33193156,165.91,165.84,7.0492]
[1729917115501,8.33193156,165.89,165.85,11.56530884]
[1729917115696,8.33193156,165.89,165.86,6.25197728]
[1729917115892,8.33193156,165.89,165.87,3.23337728]
[1729917116091,8.33193156,165.89,165.88,3.23337728]
[1729917117105,8.33193156,165.89,165.86,3.0186]
[1729917117409,8.33193156,165.88,165.87,3.23192073]
[1729917117612,8.33193156,165.88,165.85,3.0188]
[1729917117814,8.33193156,165.88,165.86,3.23275906]
[1729917118012,8.33193156,165.88,165.85,3.0188]
[1729917118204,8.33193156,165.88,165.86,3.23072969]
[1729917118510,8.33193156,165.88,165.85,3.0188]
[1729917118713,8.33193156,165.88,165.86,3.23047501]
[1729917119012,8.33193156,165.88,165.85,3.0188]
[1729917119709,8.33193156,165.88,165.86,3.22942258]
[1729917119906,8.33193156,165.88,165.85,3.0188]
[1729917121711,8.33193156,165.86,165.83,137.49214101]
[1729917122105,8.33193156,165.86,165.84,3.22905417]
[1729917122304,8.33193156,165.86,165.83,137.49214101]
[1729917123306,8.33193156,165.86,165.83,134.47304101]
[1729917123607,8.33193156,165.86,165.83,137.49214101]
[1729917124413,8.33193156,165.85,165.83,137.49214101]
[1729917124708,8.33193156,165.85,165.83,3.0191]
[1729917124906,3.0183,165.88,165.83,3.0191]
[1729917125101,8.33193156,165.86,165.83,3.0191]
[1729917126609,8.33193156,165.86,165.82,8.33193156]
[1729917126810,121.13885952,165.95,165.85,8.33193156]
[1729917127022,8.33193156,165.9,165.85,8.33193156]
[1729917127214,12.79193156,165.9,165.85,8.33193156]
[1729917129416,12.79193156,165.9,165.85,3.0188]
[1729917130419,8.33193156,165.87,165.84,3.019]
[1729917130721,8.33193156,165.86,165.82,3.8175]
[1729917130921,8.33193156,165.86,165.83,3.0191]
[1729917131115,8.33193156,165.86,165.82,1.2639]
[1729917131522,12.79193156,165.86,165.82,1.2639]
[1729917131720,8.33193156,165.85,165.81,132.6782143]
[1729917133323,8.33193156,165.82,165.73,5.7113]
[1729917133629,8.33193156,165.8,165.74,8.33193156]
[1729917133922,8.33193156,165.8,165.75,3.0204]
[1729917134319,8.33193156,165.8,165.74,8.33193156]
[1729917134525,8.33193156,165.8,165.76,3.0204]
[1729917135416,0.4425,165.89,165.78,8.33193156]
[1729917135617,8.33193156,165.85,165.8,8.33193156]
[1729917135820,4.46,165.84,165.8,8.33193156]
[1729917136016,4.46,165.84,165.8,11.35143156]
[1729917136617,12.79193156,165.85,165.8,11.35143156]
[1729917138025,12.79193156,165.85,165.8,3.0195]
[1729917141028,8.33193156,165.84,165.8,3.0195]
[1729917142030,8.33193156,165.84,165.79,8.33193156]
[1729917142031,8.33193156,165.82,165.77,8.33193156]
[1729917142220,8.33193156,165.81,165.77,8.33193156]
[1729917142524,8.33193156,165.79,165.73,1.2513]
[1729917142725,8.33193156,165.79,165.73,14.04323156]
[1729917143325,8.33193156,165.79,165.75,3.0204]
[1729917144123,4.46,165.81,165.75,8.33193156]
[1729917144319,8.33193156,165.8,165.76,3.0203]
[1729917145126,8.33193156,165.78,165.73,5.7113]
[1729917145329,8.33193156,165.78,165.75,3.0206]
[1729917145926,8.33193156,165.77,165.73,3.0209]
[1729917146224,4.46,165.81,165.72,1.2765]
[1729917146225,8.33193156,165.76,165.72,1.2765]
[1729917146420,8.33193156,165.76,165.7,8.33193156]
[1729917147223,8.33193156,165.76,165.72,3.0211]
[1729917148123,8.33193156,165.76,165.71,8.33193156]
[1729917148328,8.33193156,165.76,165.73,3.0208]
[1729917151834,8.33193156,165.77,165.72,8.33193156]
[1729917152033,8.33193156,165.73,165.67,2.4308]
[1729917152233,4.46,165.76,165.67,10.76273156]
[1729917152429,8.33193156,165.72,165.67,10.76273156]
[1729917153229,8.33193156,165.72,165.71,3.0212]
[1729917156431,8.33193156,165.74,165.69,8.33193156]
[1729917157332,8.33193156,165.74,165.71,3.0213]
[1729917159638,4.46,165.76,165.72,3.0212]
[1729917159839,8.33193156,165.75,165.72,3.0212]
[1729917160040,8.33193156,165.75,165.69,8.33193156]
[1729917160041,2.5812,165.82,165.74,8.33193156]
[1729917160239,156.13345971,166.08,165.67,2.4308]
[1729917160240,8.33193156,165.83,165.79,8.33193156]
[1729917160545,12.79193156,165.84,165.79,8.33193156]
[1729917160737,12.79193156,165.84,165.79,11.35183156]
[1729917161344,8.33193156,165.83,165.79,11.35183156]
[1729917163438,8.33193156,165.83,165.77,11.35203156]
[1729917163845,8.33193156,165.83,165.77,8.33193156]
[1729917165232,8.33193156,165.83,165.78,3.0201]
[1729917166240,8.33193156,165.81,165.77,3.0202]
[1729917167349,8.33193156,165.79,165.77,3.0202]
[1729917167534,8.33193156,165.79,165.76,3.0204]
[1729917168146,8.33193156,165.79,165.75,1.2578]
[1729917168341,8.33193156,165.79,165.75,4.2784]
[1729917168542,8.33193156,165.79,165.75,3.0206]
[1729917171249,8.33193156,165.79,165.74,8.33193156]
[1729917171449,8.33193156,165.79,165.76,3.0203]
[1729917172246,8.33193156,165.79,165.77,3.0201]
[1729917172447,4.46,165.8,165.77,3.0201]
[1729917173444,8.33193156,165.81,165.77,3.0201]
[1729917173645,8.33193156,165.81,165.77,3.0202]
[1729917174647,8.33193156,165.81,165.76,3.0203]
[1729917174842,8.33193156,165.81,165.75,8.33193156]
[1729917175647,8.33193156,165.81,165.77,3.0201]
[1729917176039,8.33193156,165.79,165.74,8.33193156]
[1729917176252,8.33193156,165.78,165.75,3.0204]
[1729917176446,8.33193156,165.78,165.73,4.46]
[1729917176648,8.33193156,165.76,165.72,145.72097276]
[1729917177443,8.33193156,165.76,165.73,3.0209]
[1729917177644,8.33193156,165.75,165.73,3.0209]
[1729917180650,8.33193156,165.75,165.72,3.0211]
[1729917181056,8.33193156,165.74,165.7,3.0214]
[1729917181353,8.33193156,165.74,165.65,1.298]
[1729917181354,8.33193156,165.72,165.68,8.33193156]
[1729917182451,8.33193156,165.72,165.71,3.0213]
[1729917182648,8.33193156,165.72,165.66,153.22030181]
[1729917182850,8.33193156,165.71,165.66,161.55223337]
[1729917183149,8.33193156,165.71,165.67,3.022]
[1729917184251,8.33193156,165.71,165.66,161.55223337]
[1729917184456,4.46,165.74,165.66,153.22030181]
[1729917184457,8.33193156,165.7,165.66,153.22030181]
[1729917185255,8.33193156,165.7,165.67,3.022]
[1729917185843,8.33193156,165.69,165.66,154.94260181]
[1729917186048,8.33193156,165.7,165.66,151.92040181]
[1729917186951,8.33193156,165.7,165.68,3.0219]
[1729917187955,8.33193156,165.7,165.67,3.022]
[1729917188257,7.4808,165.74,165.67,3.022]
[1729917188458,8.33193156,165.7,165.67,3.022]
[1729917188751,4.46,165.74,165.65,9.62993156]
[1729917188949,8.33193156,165.67,165.65,3.0223]
[1729917190254,8.33193156,165.67,165.64,3.0226]
[1729917191950,8.33193156,165.68,165.64,3.0226]
[1729917193156,1.6806,165.76,165.66,8.33193156]
[1729917193352,1.6806,165.76,165.69,3.0216]
[1729917193353,8.33193156,165.71,165.69,3.0216]
[1729917193962,8.33193156,165.71,165.67,3.0219]
[1729917194857,8.33193156,165.71,165.68,3.0219]
[1729917195065,4.46,165.73,165.68,8.33193156]
[1729917195254,4.46,165.73,165.69,3.0217]
[1729917195255,12.79193156,165.73,165.69,3.0217]
[1729917195453,8.33193156,165.72,165.69,3.0217]
[1729917197260,8.33193156,165.73,165.71,3.0212]
[1729917197463,8.33193156,165.73,165.69,8.33193156]
[1729917198359,8.33193156,165.73,165.7,3.0215]
[1729917198965,8.33193156,165.72,165.69,3.0217]
[1729917205363,8.33193156,165.72,165.68,8.33193156]
[1729917205664,8.33193156,165.72,165.69,3.0217]
[1729917207063,4.81978243,165.97,165.71,8.33193156]
[1729917207064,18.12,165.91,165.71,8.33193156]
[1729917207360,18.12,165.91,165.65,1.3318]
[1729917207361,8.33193156,165.79,165.74,8.33193156]
[1729917207961,8.33193156,165.79,165.75,3.0206]
[1729917208362,8.33193156,165.79,165.74,8.33193156]
[1729917208563,8.33193156,165.79,165.74,11.35273156]
[1729917209164,8.33193156,165.79,165.76,3.0204]
[1729917216467,127.65426873,165.86,165.76,8.33193156]
[1729917216669,58.7,165.91,165.79,8.33193156]
[1729917216875,58.7,165.91,165.81,8.33193156]
[1729917216876,8.33193156,165.85,165.81,8.33193156]
[1729917217064,131.94464185,165.89,165.82,11.35123156]
[1729917217260,8.33193156,165.87,165.82,11.35123156]
[1729917217865,8.33193156,165.86,165.82,11.35123156]
[1729917219769,8.33193156,165.86,165.82,3.0193]
[1729917221171,8.33193156,165.83,165.75,3.22526138]
[1729917221364,4.46,165.87,165.76,8.33193156]
[1729917221365,8.33193156,165.82,165.76,8.33193156]
[1729917222364,8.33193156,165.82,165.77,3.0202]
[1729917222874,11.35133156,165.82,165.76,8.33193156]
[1729917223079,8.33193156,165.8,165.76,8.33193156]
[1729917224868,8.33193156,165.8,165.76,11.35233156]
[1729917226785,8.33193156,165.8,165.68,139.82742758]
[1729917226786,8.33193156,165.77,165.73,3.021]
[1729917227175,8.33193156,165.77,165.72,8.33193156]
[1729917227574,8.33193156,165.77,165.74,3.0207]
[1729917228978,8.33193156,165.79,165.74,11.35263156]
[1729917229383,8.33193156,165.8,165.74,11.35263156]
[1729917229567,8.33193156,165.8,165.75,8.33193156]
[1729917231677,11.35183156,165.8,165.75,8.33193156]
[1729917232582,8.33193156,165.8,165.75,8.33193156]
[1729917234179,8.33193156,165.8,165.74,3.0207]
[1729917234478,8.33193156,165.8,165.74,11.35263156]
[1729917237576,11.35173156,165.8,165.74,8.33193156]
[1729917237778,8.33193156,165.8,165.74,8.33193156]
[1729917238174,8.33193156,165.78,165.74,3.0207]
[1729917238370,8.33193156,165.78,165.72,10.86923156]
[1729917238680,8.33193156,165.78,165.73,3.0208]
[1729917241181,4.46,165.79,165.69,4.46]
[1729917241182,8.33193156,165.76,165.69,4.46]
[1729917241386,8.33193156,165.76,165.7,8.33193156]
[1729917241785,8.33193156,165.76,165.69,4.46]
[1729917241986,8.33193156,165.76,165.7,8.33193156]
[1729917242284,8.33193156,165.76,165.71,4.2877]
[1729917243486,8.33193156,165.76,165.71,12.61963156]
[1729917249993,8.33193156,165.74,165.7,11.35343156]
[1729917251890,8.33193156,165.74,165.7,8.33193156]
[1729917253994,3.0202,165.78,165.71,3.0213]
[1729917254196,8.33193156,165.76,165.71,11.35323156]
[1729917260806,8.33193156,165.76,165.72,3.0211]
[1729917262209,8.33193156,165.77,165.72,3.0211]
[1729917262410,8.33193156,165.77,165.73,11.35293156]
[1729917262807,8.33193156,165.78,165.73,8.33193156]
[1729917263901,2.6406,165.82,165.77,3.0202]
[1729917263902,7.1006,165.82,165.77,3.0202]
[1729917264111,8.33193156,165.81,165.77,8.33193156]
[1729917264910,8.33193156,165.81,165.75,3.0205]
[1729917265114,8.33193156,165.8,165.76,11.56956935]
[1729917265414,8.33193156,165.8,165.76,8.33193156]
[1729917270609,4.46,165.82,165.77,8.33193156]
[1729917270913,2.5733,165.87,165.81,8.33193156]
[1729917270914,4.46,165.87,165.81,8.33193156]
[1729917271117,4.46,165.87,165.83,8.33193156]
[1729917271320,8.33193156,165.87,165.83,8.33193156]
[1729917274721,8.33193156,165.87,165.82,3.0193]
[1729917274925,8.33193156,165.85,165.8,8.33193156]
[1729917275227,8.33193156,165.85,165.81,3.0195]
[1729917284832,8.33193156,165.85,165.78,3.8102]
[1729917285034,8.33193156,165.85,165.8,11.35163156]
[1729917286226,8.33193156,165.85,165.8,8.33193156]
[1729917287434,8.33193156,165.85,165.8,11.35143156]
[1729917287633,8.33193156,165.88,165.83,8.33193156]
[1729917287821,127.48464185,165.89,165.84,8.33193156]
[1729917288130,131.92464185,165.89,165.84,8.33193156]
[1729917288838,8.33193156,165.88,165.84,8.33193156]
[1729917293434,1.3318,165.91,165.84,8.33193156]
[1729917293638,217.29071603,166.04,165.86,8.33193156]
[1729917293639,7.4576,165.92,165.86,8.33193156]
[1729917293832,8.33193156,165.91,165.86,8.33193156]
[1729917295337,8.33193156,165.91,165.86,11.35053156]
[1729917295738,8.33193156,165.91,165.86,8.33193156]
[1729917297534,3.0175,165.92,165.86,8.33193156]
[1729917297738,8.33193156,165.91,165.86,8.33193156]
[1729917298134,229.0,166.14,165.9,8.33193156]
[1729917298135,199.17071603,166.04,165.9,8.33193156]
[1729917298328,8.33193156,165.99,165.94,8.33193156]
[1729917298631,8.33193156,166.0,165.94,8.33193156]
[1729917298838,8.33193156,166.0,165.95,11.34883156]
[1729917299138,8.6963,166.03,165.86,3.9078]
[1729917299139,8.33193156,165.96,165.86,3.9078]
[1729917299331,8.33193156,165.96,165.9,8.33193156]
[1729917300330,8.33193156,165.96,165.9,11.34973156]
[1729917301533,8.33193156,165.96,165.92,8.33193156]
[1729917302040,11.34833156,165.98,165.93,8.33193156]
[1729917302737,3.0166,165.97,165.93,8.33193156]
[1729917302935,8.33193156,165.98,165.93,8.33193156]
[1729917304238,11.34833156,165.98,165.93,8.33193156]
[1729917304442,4.44,165.99,165.86,3.9078]
[1729917304638,8.33193156,165.93,165.86,3.9078]
[1729917304840,8.33193156,165.93,165.88,8.33193156]
[1729917305041,8.33193156,165.92,165.88,8.33193156]
[1729917305236,8.33193156,165.92,165.86,9.67413156]
[1729917305646,3.0177,165.91,165.86,9.67413156]
[1729917305842,8.33193156,165.92,165.86,9.67413156]
[1729917306038,3.0173,165.94,165.88,8.33193156]
[1729917306238,12.77193156,165.95,165.88,8.33193156]
[1729917306636,12.77193156,165.95,165.9,8.33193156]
[1729917308046,3.0172,165.94,165.9,8.33193156]
[1729917310352,3.0172,165.94,165.88,3.0182]
[1729917310353,11.34933156,165.93,165.88,8.33193156]
[1729917310552,8.33193156,165.93,165.88,8.33193156]
[1729917312245,8.33193156,165.93,165.88,11.35013156]
[1729917314262,8.33193156,165.93,165.88,8.33193156]
[1729917322461,8.33193156,165.93,165.87,3.0184]
[1729917322666,8.33193156,165.9,165.83,4.44]
[1729917322866,8.33193156,165.9,165.85,8.33193156]
[1729917324467,8.33193156,165.9,165.82,3.8414]
[1729917324674,11.35033156,165.88,165.83,8.33193156]
[1729917325363,8.33193156,165.88,165.83,8.33193156]
[1729917325568,3.0185,165.87,165.83,8.33193156]
[1729917326173,11.35023156,165.88,165.83,8.33193156]
[1729917327775,8.33193156,165.84,165.81,138.53838193]
[1729917327964,8.33193156,165.82,165.73,2.5164]
[1729917328170,3.0198,165.8,165.74,4.44]
[1729917328476,8.33193156,165.8,165.74,4.44]
[1729917328672,8.33193156,165.8,165.75,8.33193156]
[1729917332568,8.33193156,165.8,165.74,8.33193156]
[1729917333177,8.33193156,165.8,165.74,11.35273156]
[1729917334574,8.33193156,165.8,165.75,8.33193156]
[1729917335372,4.44,165.81,165.78,8.33193156]
[1729917335565,4.44,165.81,165.77,8.33193156]
[1729917338373,8.33193156,165.82,165.77,8.33193156]
[1729917338575,11.35133156,165.82,165.77,8.33193156]
[1729917339371,3.05699746,165.84,165.78,8.33193156]
[1729917339568,3.0188,165.86,165.82,8.33193156]
[1729917339876,232.0447583,166.0,165.74,128.28838855]
[1729917339877,3.0447583,166.0,165.85,8.33193156]
[1729917340072,8.33193156,165.99,165.86,5.6838]
[1729917340278,8.33193156,165.99,165.93,8.33193156]
[1729917340279,15.78823156,165.99,165.93,8.33193156]
[1729917340480,8.33193156,165.98,165.93,8.33193156]
[1729917343180,8.33193156,165.95,165.9,8.33193156]
[1729917348983,8.33193156,165.96,165.91,8.33193156]
[1729917349488,11.34883156,165.96,165.91,8.33193156]
[1729917350885,4.44,165.99,165.88,4.44]
[1729917350886,11.34863156,165.97,165.92,8.33193156]
[1729917351085,3.0167,165.97,165.94,8.33193156]
[1729917351485,3.0161,166.0,165.96,8.33193156]
[1729917351686,7.4561,166.0,165.96,8.33193156]
[1729917354092,7.4561,166.0,165.95,8.33193156]
[1729917354389,3.0162,165.99,165.95,8.33193156]
[1729917358494,11.34813156,165.99,165.94,3.0171]
[1729917360187,15.78813156,165.99,165.94,3.0171]
[1729917360392,15.78813156,165.99,165.93,8.33193156]
[1729917360689,117.03336714,166.08,165.93,4.44]
[1729917360885,117.03336714,166.08,166.03,8.33193156]
[1729917360886,118.36876714,166.08,166.03,8.33193156]
[1729917361084,126.7006987,166.08,166.03,8.33193156]
[1729917361696,129.7154987,166.08,166.03,8.33193156]
[1729917362191,1.3354,166.08,165.99,3.0162]
[1729917362395,13.03324332,166.06,165.98,4.44]
[1729917362594,13.03324332,166.06,165.96,13.03324332]
[1729917362785,4.44,166.05,165.96,13.03324332]
[1729917363188,3.0155,166.04,165.97,3.0166]
[1729917365093,3.0155,166.04,165.98,13.03324332]
[1729917369403,4.44,166.05,165.98,13.03324332]
[1729917369600,4.44,166.05,165.96,4.5]
[1729917369601,4.5,166.07,166.0,13.03324332]
[1729917370494,7.515,166.07,166.0,16.04934332]
[1729917371997,3.0154,166.04,165.99,3.0162]
[1729917372607,3.0154,166.04,165.98,16.04964332]
[1729917374001,4.5,166.07,165.98,13.03324332]
[1729917374204,17.53324332,166.07,165.96,13.03324332]
[1729917375299,3.0155,166.03,165.98,3.0164]
[1729917375504,7.5155,166.03,165.98,3.0164]
[1729917376705,4.5,166.03,165.96,13.03324332]
[1729917377612,4.5,166.03,165.94,1.2407]
[1729917378411,3.0162,166.0,165.94,4.2578]
[1729917383708,118.03533731,166.08,165.96,13.03324332]
[1729917383910,3.0156,166.03,165.97,3.0165]
[1729917384110,7.5156,166.03,165.98,13.03324332]
[1729917384312,7.5156,166.03,166.0,8.34130313]
[1729917386705,4.5,166.03,165.94,1.2407]
[1729917386911,12.84130313,166.03,165.98,8.34130313]
[1729917388309,3.016,166.01,165.98,8.34130313]
[1729917392616,4.5,166.03,165.98,8.34130313]
[1729917392815,4.5,166.03,165.94,1.2407]
[1729917393118,12.84130313,166.03,165.97,8.34130313]
[1729917394112,3.0159,166.01,165.97,8.34130313]
[1729917396616,4.5,166.03,165.99,8.34130313]
[1729917397515,3.0157,166.02,165.99,8.34130313]
[1729917400026,3.0164,165.99,165.94,4.2578]
[1729917400317,8.34130313,166.02,165.97,8.34130313]
[1729917401421,8.34130313,166.01,165.95,8.34130313]
[1729917403327,3.0163,165.99,165.95,8.34130313]
[1729917406435,3.016,166.01,165.98,8.34130313]
[1729917407337,8.34130313,165.99,165.92,8.34130313]
[1729917407540,12.78130313,165.98,165.92,8.34130313]
[1729917408338,15.86631132,165.98,165.92,8.34130313]
[1729917408536,3.0168,165.96,165.92,8.34130313]
[1729917418044,8.34130313,165.97,165.86,3.7427]
[1729917418243,3.0171,165.95,165.9,8.34130313]
[1729917422346,3.0171,165.95,165.92,8.34130313]
[1729917422646,3.0168,165.97,165.93,8.34130313]
[1729917425042,4.44,165.97,165.96,8.34130313]
[1729917425342,4.44,165.99,165.96,8.34130313]
[1729917425846,7.4564,165.99,165.96,8.34130313]
[1729917430046,2.5087,166.02,165.96,8.34130313]
[1729917430245,2.5087,166.02,165.99,8.34130313]
[1729917430246,4.44,166.02,165.99,8.34130313]
[1729917432143,7.4557,166.02,165.99,8.34130313]
[1729917433440,7.4557,166.02,165.97,3.0166]
[1729917433646,7.4557,166.02,165.98,8.34130313]
[1729917434346,8.34130313,166.03,165.92,3.7855]
[1729917434347,116.69993731,166.08,166.01,8.34130313]
[1729917434548,116.69993731,166.08,166.02,8.34130313]
[1729917434753,125.04124044,166.08,166.02,8.34130313]
[1729917435049,3.0153,166.05,166.01,8.34130313]
[1729917436446,8.34130313,166.05,166.0,8.34130313]
[1729917436849,8.34130313,166.05,165.98,4.2908]
[1729917437042,8.34130313,166.05,165.98,12.63210313]
[1729917437244,3.0155,166.03,165.98,12.63210313]
[1729917437646,8.34130313,166.03,165.96,3.0166]
[1729917437854,3.0165,165.98,165.95,12.78130313]
[1729917438054,8.34130313,166.01,165.95,12.78130313]
[1729917439256,8.34130313,165.99,165.93,1.2861]
[1729917440255,3.0165,165.98,165.93,1.2861]
[1729917443358,3.0167,165.97,165.93,1.2861]
[1729917445155,12.78130313,165.99,165.92,2.5529]
[1729917445359,8.34130313,165.94,165.86,5.7172]
[1729917445661,8.34130313,165.95,165.89,8.34130313]
[1729917445863,11.35840313,165.95,165.9,3.22885622]
[1729917446062,11.35840313,165.95,165.89,8.34130313]
[1729917446258,11.35840313,165.95,165.9,3.2293584]
[1729917446459,11.35840313,165.95,165.89,8.34130313]